bitfinex-derivatives/quotes_BTCF0:USTF0_20251216
["timestamp","ask_amount","ask_price","bid_price","bid_amount"]
[1765923977054,0.08464181,87886.0,87876.0,0.01812]
[1765923977055,0.069233,87869.0,87868.0,0.41863]
[1765923977254,0.069233,87869.0,87868.0,0.0692132]
[1765923977255,0.03717481,87869.0,87868.0,0.0692132]
[1765923977562,0.03750492,87869.0,87868.0,0.4300132]
[1765923978466,0.011383,87869.0,87868.0,0.4310132]
[1765923978964,0.011383,87869.0,87868.0,0.4320132]
[1765923981365,0.011383,87869.0,87868.0,0.42063]
[1765923989374,0.069233,87869.0,87868.0,0.42063]
[1765923990271,0.09533573,87869.0,87868.0,0.002]
[1765923991463,0.09533573,87869.0,87868.0,0.02953]
[1765923991668,0.09533573,87869.0,87868.0,0.05983]
[1765923996666,0.09533573,87869.0,87868.0,0.002]
[1765923997472,0.09533573,87869.0,87868.0,0.03021]
[1765923999777,0.09533573,87869.0,87868.0,0.002]
[1765923999980,0.0674941,87861.0,87860.0,0.41882068]
[1765924001180,0.0674941,87861.0,87860.0,0.42082068]
[1765924001479,0.0674941,87861.0,87860.0,0.42282068]
[1765924002475,0.0775941,87861.0,87860.0,0.42282068]
[1765924004384,0.0775941,87861.0,87860.0,0.06202068]
[1765924005271,0.09371745,87861.0,87860.0,0.06202068]
[1765924005880,0.0674941,87861.0,87860.0,0.06202068]
[1765924006176,0.09371578,87861.0,87860.0,0.06202068]
[1765924007668,0.11153578,87861.0,87860.0,0.00417068]
[1765924007872,0.47233578,87861.0,87860.0,0.00417068]
[1765924009282,0.067496,87846.0,87845.0,0.41865]
[1765924009986,0.09370915,87846.0,87845.0,0.41865]
[1765924010382,0.067496,87846.0,87845.0,0.42265]
[1765924010686,0.067496,87846.0,87845.0,0.42565]
[1765924018486,0.068496,87846.0,87845.0,0.42165]
[1765924019488,0.068496,87846.0,87845.0,0.41865]
[1765924019690,0.069496,87846.0,87845.0,0.41865]
[1765924023197,0.069496,87846.0,87845.0,0.05785]
[1765924024691,0.081316,87846.0,87845.0,0.05785]
[1765924027298,0.10748842,87846.0,87845.0,0.05785]
[1765924029299,0.09566842,87846.0,87845.0,0.05785]
[1765924030891,0.069496,87846.0,87845.0,0.05785]
[1765924031399,0.09567963,87846.0,87845.0,0.05785]
[1765924042705,0.10545963,87846.0,87845.0,0.05785]
[1765924043010,0.10545963,87846.0,87845.0,0.057]
[1765924044410,0.09567963,87846.0,87845.0,0.057]
[1765924044611,0.06684963,87846.0,87845.0,0.057]
[1765924045408,0.09543963,87846.0,87845.0,0.057]
[1765924045707,0.06684963,87846.0,87845.0,0.0683861]
[1765924045910,0.02818363,87846.0,87845.0,0.0683861]
[1765924046116,0.00017068,87854.0,87853.0,0.0677151]
[1765924046308,0.00017068,87854.0,87853.0,0.4285151]
[1765924046608,0.0113839,87863.0,87862.0,0.0677139]
[1765924046908,0.0113839,87863.0,87862.0,0.4285139]
[1765924048406,0.0143839,87863.0,87862.0,0.4285139]
[1765924048612,0.00017033,87871.0,87870.0,0.0677129]
[1765924048808,0.00017033,87871.0,87870.0,0.4285129]
[1765924050510,0.00417033,87871.0,87870.0,0.4285129]
[1765924052028,0.01555313,87871.0,87870.0,0.4285129]
[1765924052222,0.00417033,87871.0,87870.0,0.4285129]
[1765924068745,0.00417033,87871.0,87870.0,0.4442429]
[1765924072346,0.00417033,87871.0,87870.0,0.0834429]
[1765924072544,0.00417033,87871.0,87870.0,0.4442429]
[1765924079357,0.00417033,87871.0,87870.0,0.0834429]
[1765924079547,0.00017033,87871.0,87870.0,0.4442429]
[1765924079849,0.00017033,87871.0,87870.0,0.0834429]
[1765924080054,0.00017033,87871.0,87870.0,0.4442429]
[1765924080252,0.09528905,87871.0,87870.0,0.05633]
[1765924080440,0.09528905,87871.0,87870.0,0.0687129]
[1765924081343,0.09528905,87871.0,87870.0,0.05733]
[1765924081541,0.09528905,87871.0,87870.0,0.05633]
[1765924082954,0.09628905,87871.0,87870.0,0.05633]
[1765924083749,0.09528905,87871.0,87870.0,0.05633]
[1765924085458,0.09628905,87871.0,87870.0,0.05633]
[1765924086162,0.09528905,87871.0,87870.0,0.05633]
[1765924086352,0.09628905,87871.0,87870.0,0.05633]
[1765924087159,0.09528905,87871.0,87870.0,0.05633]
[1765924087360,0.09528905,87871.0,87870.0,0.0656]
[1765924087560,0.06589905,87871.0,87870.0,0.0656]
[1765924087862,0.09463905,87871.0,87870.0,0.0656]
[1765924088860,0.09463905,87871.0,87870.0,0.0666]
[1765924090752,0.02609625,87871.0,87870.0,0.0666]
[1765924090952,0.08356625,87871.0,87870.0,0.0666]
[1765924091457,0.08356625,87871.0,87870.0,0.05733]
[1765924096163,0.05482625,87871.0,87870.0,0.05733]
[1765924096366,0.02609625,87871.0,87870.0,0.05733]
[1765924098064,0.00017033,87871.0,87870.0,0.05733]
[1765924099369,0.00017033,87871.0,87870.0,0.41813]
[1765924103664,0.00017033,87871.0,87870.0,0.43498]
[1765924104266,0.05764033,87871.0,87870.0,0.43498]
[1765924105182,0.08398049,87871.0,87870.0,0.43498]
[1765924111888,0.08398049,87871.0,87870.0,0.07418]
[1765924112077,0.08398049,87871.0,87870.0,0.43498]
[1765924117396,0.08398049,87871.0,87870.0,0.41849]
[1765924118087,0.02651049,87871.0,87870.0,0.43471]
[1765924119302,0.02651049,87871.0,87870.0,0.43371]
[1765924119504,0.02651049,87871.0,87870.0,0.43471]
[1765924119885,0.02651049,87871.0,87870.0,0.43371]
[1765924120093,0.02651049,87871.0,87870.0,0.43471]
[1765924121385,0.08464049,87871.0,87870.0,0.3618]
[1765924121589,0.08464049,87871.0,87870.0,0.001]
[1765924121787,0.0695138,87863.0,87862.0,8e-08]
[1765924121993,0.07554,87844.0,87843.0,0.05661]
[1765924122293,0.0869263,87844.0,87843.0,0.05661]
[1765924122795,0.0695163,87844.0,87843.0,0.05661]
[1765924123195,0.0695163,87844.0,87843.0,0.05761]
[1765924125295,0.0695163,87844.0,87843.0,0.05661]
[1765924125599,0.0695163,87844.0,87843.0,0.05761]
[1765924126403,0.0695163,87844.0,87843.0,0.05661]
[1765924128600,0.0705163,87844.0,87843.0,0.05661]
[1765924129298,0.0695163,87844.0,87843.0,0.05661]
[1765924132513,0.0695163,87844.0,87843.0,0.05761]
[1765924135013,0.0695163,87844.0,87843.0,0.05861]
[1765924135908,0.0695163,87844.0,87843.0,0.05761]
[1765924136113,0.0695163,87844.0,87843.0,0.05861]
[1765924140513,0.0695163,87844.0,87843.0,0.05761]
[1765924140812,0.0695163,87844.0,87843.0,0.05861]
[1765924142115,0.0695163,87844.0,87843.0,0.05761]
[1765924142319,0.0695163,87844.0,87843.0,0.05861]
[1765924143022,0.05813,87844.0,87843.0,0.05861]
[1765924146825,0.05813,87844.0,87843.0,0.06985]
[1765924147427,0.05813,87844.0,87843.0,0.05861]
[1765924147826,0.05813,87844.0,87843.0,0.07625]
[1765924148423,0.06800608,87852.0,87851.0,0.0668154]
[1765924148727,0.09436204,87852.0,87851.0,0.0668154]
[1765924150228,0.09436204,87852.0,87851.0,0.05543]
[1765924152926,0.02652664,87852.0,87851.0,0.05543]
[1765924153228,0.00017068,87852.0,87851.0,0.05543]
[1765924154033,0.0678329,87870.0,87869.0,0.05543]
[1765924154232,0.09449611,87870.0,87869.0,0.05543]
[1765924155926,0.09749611,87870.0,87869.0,0.05543]
[1765924157820,0.08611321,87870.0,87869.0,0.427613]
[1765924159228,0.003,87870.0,87869.0,0.427613]
[1765924160530,0.03125,87870.0,87869.0,0.427613]
[1765924164337,0.003,87870.0,87869.0,0.427613]
[1765924165134,0.03125,87870.0,87869.0,0.427613]
[1765924165328,0.003,87870.0,87869.0,0.427613]
[1765924172932,0.00017033,87878.0,87877.0,0.066812]
[1765924173132,0.0845306,87888.0,87887.0,0.05543]
[1765924173329,0.0845306,87888.0,87887.0,0.41623]
[1765924174635,0.0865306,87888.0,87887.0,0.41623]
[1765924176336,0.0306,87888.0,87887.0,0.41623]
[1765924176535,0.05948,87888.0,87887.0,1.12739]
[1765924187446,0.05948,87888.0,87887.0,0.76659]
[1765924187648,0.05948,87888.0,87887.0,1.12739]
[1765924188048,0.002,87888.0,87887.0,1.12739]
[1765924188253,0.00227538,87898.0,87897.0,0.0831294]
[1765924188455,0.00227538,87898.0,87897.0,0.4439294]
[1765924189542,0.00527538,87898.0,87897.0,0.4439294]
[1765924192356,0.00327538,87898.0,87897.0,0.4439294]
[1765924193057,0.05748,87918.0,87908.0,0.01509]
[1765924193249,0.0688569,87916.0,87915.0,0.05562]
[1765924193445,0.08405271,87916.0,87915.0,0.0669971]
[1765924196658,0.08605271,87916.0,87915.0,0.0669971]
[1765924197046,0.05948,87916.0,87915.0,0.0669971]
[1765924197451,0.002,87916.0,87915.0,0.0669971]
[1765924198352,0.0306,87916.0,87915.0,0.0669971]
[1765924201058,0.05948,87916.0,87915.0,0.0669971]
[1765924202064,0.002,87916.0,87915.0,0.0669971]
[1765924204953,0.0306,87916.0,87915.0,0.0669971]
[1765924205158,0.002,87916.0,87915.0,0.0669971]
[1765924208364,0.06044,87916.0,87915.0,0.0669971]
[1765924210061,0.06044,87916.0,87910.0,0.41757]
[1765924210062,0.0698176,87911.0,87910.0,0.41757]
[1765924210260,0.0698176,87911.0,87910.0,0.9831477]
[1765924210565,0.0698176,87911.0,87910.0,0.97177]
[1765924210755,0.0698176,87911.0,87910.0,0.3608]
[1765924210951,0.0698184,87905.0,87904.0,0.00017068]
[1765924211152,0.0963516,87905.0,87904.0,0.00017068]
[1765924211360,0.0698199,87893.0,87892.0,0.3608]
[1765924212565,0.0698199,87893.0,87884.0,0.00017068]
[1765924212566,0.086831,87885.0,87884.0,0.00017068]
[1765924212764,0.47411571,87885.0,87884.0,6.8e-07]
[1765924212957,0.09630571,87885.0,87884.0,0.05677068]
[1765924213161,0.069821,87885.0,87884.0,0.05677068]
[1765924213869,0.0113808,87887.0,87884.0,6.8e-07]
[1765924214773,0.05844,87885.0,87884.0,0.00100068]
[1765924215675,0.0113808,87887.0,87884.0,6.8e-07]
[1765924219180,0.0113808,87887.0,87885.0,0.011381]
[1765924219367,0.05844,87886.0,87885.0,0.068151]
[1765924220671,0.05844,87886.0,87885.0,0.069151]
[1765924220974,0.41924,87899.0,87898.0,0.05677]
[1765924221281,0.41924,87899.0,87898.0,0.0293]
[1765924221282,0.44569722,87899.0,87898.0,0.0293]
[1765924221480,0.05844,87897.0,87896.0,0.0406795]
[1765924222079,0.05844,87897.0,87896.0,0.0681495]
[1765924222470,0.0288,87897.0,87896.0,0.0681495]
[1765924224567,0.05861068,87901.0,87900.0,0.085449]
[1765924224767,0.05861068,87901.0,87900.0,0.446249]
[1765924224963,0.00017068,87901.0,87900.0,0.446249]
[1765924226268,0.00117068,87901.0,87900.0,0.446249]
[1765924227476,0.3608,87925.0,87918.0,0.0173]
[1765924227477,0.0288,87922.0,87918.0,0.0173]
[1765924227673,0.05844,87925.0,87924.0,0.0854459]
[1765924227873,0.05844,87925.0,87924.0,0.4462459]
[1765924229974,0.0699848,87933.0,87932.0,0.05677]
[1765924230777,0.00017,87933.0,87932.0,0.05677]
[1765924230977,0.00017,87933.0,87932.0,0.41757]
[1765924230978,0.0699847,87933.0,87932.0,0.41757]
[1765924232283,0.0729847,87933.0,87932.0,0.41757]
[1765924232582,0.06161,87933.0,87932.0,0.41757]
[1765924232784,0.00017,87933.0,87932.0,0.41757]
[1765924232981,0.00317,87933.0,87932.0,0.41757]
[1765924236581,0.03308,87933.0,87932.0,0.41757]
[1765924236980,0.06267,87933.0,87932.0,0.41757]
[1765924240183,0.06267,87933.0,87932.0,0.4289449]
[1765924243396,0.00317,87933.0,87932.0,0.4289449]
[1765924243597,0.03297,87933.0,87932.0,0.4289449]
[1765924243893,0.06256,87933.0,87932.0,0.4289449]
[1765924252916,0.0739347,87933.0,87932.0,0.4289449]
[1765924254211,0.06256,87933.0,87932.0,0.4289449]
[1765924255817,0.00317,87933.0,87932.0,0.4289449]
[1765924256213,0.03297,87933.0,87932.0,0.4289449]
[1765924256414,0.06256,87933.0,87932.0,0.4289449]
[1765924256718,0.06256,87933.0,87932.0,0.4468849]
[1765924256918,0.08913231,87933.0,87932.0,1.1123549]
[1765924261522,0.08913231,87933.0,87932.0,1.1213249]
[1765924263218,0.08913231,87933.0,87932.0,0.7605249]
[1765924263519,0.08913231,87933.0,87932.0,1.1213249]
[1765924267624,0.08913231,87933.0,87932.0,0.7605249]
[1765924267931,0.08913231,87933.0,87932.0,0.7900949]
[1765924273027,0.02974231,87933.0,87932.0,0.7900949]
[1765924273430,0.05777231,87933.0,87932.0,0.7900949]
[1765924273821,0.02974231,87933.0,87932.0,0.7900949]
[1765924274023,0.08704231,87933.0,87932.0,0.7900949]
[1765924275437,0.08704231,87933.0,87932.0,1.1508949]
[1765924276233,0.068676,87923.0,87922.0,0.41925]
[1765924276419,0.09524831,87923.0,87922.0,1.12993]
[1765924277026,0.03794831,87923.0,87922.0,1.12993]
[1765924277233,0.05460231,87923.0,87922.0,1.12993]
[1765924277828,0.02657231,87923.0,87922.0,1.12993]
[1765924278235,0.00017,87933.0,87932.0,0.0867249]
[1765924278536,0.02675996,87933.0,87932.0,0.0867249]
[1765924279634,0.02875996,87933.0,87932.0,0.0867249]
[1765924282836,0.08605996,87933.0,87932.0,0.0867249]
[1765924284637,0.09743466,87933.0,87932.0,0.0867249]
[1765924286536,0.09743466,87933.0,87932.0,0.0698249]
[1765924289844,0.09743466,87933.0,87932.0,0.0867249]
[1765924292846,0.08605996,87933.0,87932.0,0.0867249]
[1765924307273,0.08605996,87933.0,87932.0,0.4475249]
[1765924337290,0.08605996,87933.0,87932.0,0.0867249]
[1765924337492,0.08605996,87933.0,87932.0,0.4475249]
[1765924340392,0.08605996,87933.0,87932.0,0.4306249]
[1765924349502,0.08605996,87933.0,87932.0,0.0698249]
[1765924350302,0.08605996,87933.0,87932.0,0.0809849]
[1765924353906,0.08605996,87933.0,87932.0,0.0698249]
[1765924354397,0.05583,87921.0,87920.0,0.41577]
[1765924354602,0.09379626,87921.0,87920.0,1.12641]
[1765924354905,0.09379626,87921.0,87916.0,0.01686068]
[1765924354906,0.0672068,87917.0,87916.0,0.05514068]
[1765924355091,0.09379676,87917.0,87916.0,0.05514068]
[1765924356498,0.09379676,87917.0,87916.0,0.05539068]
[1765924356689,0.09379676,87917.0,87916.0,0.02849068]
[1765924356893,0.09379676,87917.0,87916.0,0.00017068]
[1765924357598,0.09379676,87917.0,87916.0,0.02849068]
[1765924357798,0.0691176,87911.0,87910.0,0.4169]
[1765924358100,0.09570756,87911.0,87910.0,0.4169]
[1765924361095,0.09570756,87911.0,87910.0,0.0561]
[1765924361709,0.09570756,87911.0,87902.0,0.36097068]
[1765924361710,0.0691186,87903.0,87902.0,0.41707068]
[1765924362598,0.0859386,87903.0,87902.0,0.00017068]
[1765924362800,0.11281024,87903.0,87902.0,0.00017068]
[1765924363307,0.0691202,87891.0,87890.0,0.4169]
[1765924364610,0.0691212,87883.0,87882.0,0.38929068]
[1765924364913,0.0691212,87883.0,87882.0,0.02849068]
[1765924365808,0.0691212,87883.0,87882.0,0.00017068]
[1765924366013,0.0701212,87883.0,87882.0,0.02849068]
[1765924366215,0.0701212,87883.0,87882.0,0.05627068]
[1765924367309,0.0691212,87883.0,87882.0,0.05627068]
[1765924367506,0.0701212,87883.0,87882.0,0.05627068]
[1765924368214,0.0691212,87883.0,87882.0,0.05627068]
[1765924369110,0.0691212,87883.0,87882.0,0.00017068]
[1765924371015,0.0701212,87883.0,87882.0,0.00017068]
[1765924373513,0.0701212,87883.0,87882.0,0.02849068]
[1765924373708,0.0701212,87883.0,87882.0,0.05627068]
[1765924379622,0.0701212,87883.0,87882.0,0.06765198]
[1765924379623,0.001,87883.0,87882.0,0.06765198]
[1765924379818,0.0123812,87883.0,87882.0,0.06765198]
[1765924380625,0.0414312,87883.0,87882.0,0.06765198]
[1765924381023,0.0404312,87883.0,87882.0,0.06765198]
[1765924381922,0.0691212,87883.0,87882.0,0.06765198]
[1765924382712,0.02905,87883.0,87882.0,0.06765198]
[1765924383316,0.05774,87883.0,87882.0,0.06765198]
[1765924384226,0.0113812,87884.0,87883.0,0.05822]
[1765924384428,0.03818978,87884.0,87883.0,0.05822]
[1765924384928,0.06623978,87884.0,87883.0,0.05822]
[1765924388631,0.06628147,87884.0,87883.0,0.05822]
[1765924389026,0.09383147,87884.0,87883.0,0.05822]
[1765924398233,0.09383147,87884.0,87883.0,0.0696012]
[1765924398438,0.09383147,87884.0,87883.0,0.05822]
[1765924399131,0.09383147,87884.0,87883.0,0.0696012]
[1765924406641,0.09383147,87884.0,87883.0,0.05822]
[1765924430163,0.11140147,87884.0,87883.0,0.05822]
[1765924433673,0.11140147,87884.0,87883.0,0.02905]
[1765924433964,0.05671,87883.0,87882.0,0.00017068]
[1765924434161,0.08356027,87883.0,87882.0,0.00017068]
[1765924434361,0.08356027,87883.0,87882.0,0.02744068]
[1765924436160,0.08356027,87883.0,87882.0,0.00017068]
[1765924436560,0.08356027,87883.0,87882.0,0.02744068]
[1765924440265,0.08356027,87883.0,87882.0,0.00017068]
[1765924440655,0.08356027,87883.0,87882.0,0.02744068]
[1765924441871,0.08356027,87883.0,87882.0,0.05484068]
[1765924442176,0.05577027,87883.0,87882.0,0.05484068]
[1765924442364,0.08356027,87883.0,87882.0,0.07219068]
[1765924442569,0.02685027,87883.0,87882.0,0.08357198]
[1765924442867,0.06135745,87889.0,87887.0,0.05467]
[1765924442868,0.05671,87888.0,87887.0,0.05467]
[1765924443064,0.08362735,87888.0,87887.0,0.4268507]
[1765924443667,0.08362735,87888.0,87887.0,0.41547]
[1765924444372,0.08362735,87888.0,87887.0,0.05467]
[1765924444570,0.09557735,87888.0,87887.0,0.05467]
[1765924445160,0.09557735,87888.0,87887.0,0.05567]
[1765924445364,0.09557735,87888.0,87887.0,0.0670507]
[1765924445761,0.09557735,87888.0,87887.0,0.0660507]
[1765924446877,0.08362735,87888.0,87887.0,0.0660507]
[1765924447072,0.08362735,87888.0,87887.0,0.05467]
[1765924450877,0.0835942,87888.0,87887.0,0.05467]
[1765924461690,0.0558042,87888.0,87887.0,0.05467]
[1765924461895,0.00017068,87891.0,87890.0,0.0673803]
[1765924463801,0.00017068,87891.0,87890.0,0.0683803]
[1765924463998,0.00017068,87891.0,87890.0,0.0703803]
[1765924476004,0.00017068,87891.0,87890.0,0.4311803]
[1765924478712,0.00017068,87891.0,87890.0,0.4485303]
[1765924488721,0.05731068,87891.0,87890.0,0.4311803]
[1765924491423,0.08412034,87891.0,87890.0,0.4311803]
[1765924492018,0.08412034,87891.0,87890.0,0.4489403]
[1765924492816,0.08412034,87891.0,87890.0,0.4198]
[1765924493017,0.08412034,87891.0,87890.0,0.3638]
[1765924493219,0.08412034,87891.0,87890.0,0.003]
[1765924493419,0.08412034,87891.0,87890.0,0.001]
[1765924493618,0.08412034,87891.0,87882.0,0.00017068]
[1765924493619,0.0685212,87883.0,87882.0,0.00017068]
[1765924493824,0.09533086,87883.0,87882.0,0.00017068]
[1765924495030,0.09533086,87883.0,87882.0,0.02830068]
[1765924495328,0.09533086,87883.0,87882.0,0.00017068]
[1765924498531,0.09533086,87883.0,87882.0,0.05638068]
[1765924499733,0.09633086,87883.0,87882.0,0.05638068]
[1765924501233,0.09733086,87883.0,87882.0,0.05638068]
[1765924502732,0.09633086,87883.0,87882.0,0.05638068]
[1765924503131,0.08494966,87883.0,87882.0,0.05638068]
[1765924503332,0.08494966,87883.0,87882.0,0.07414068]
[1765924503521,0.05528966,87883.0,87882.0,0.07414068]
[1765924503729,0.41794,87888.0,87887.0,0.0675907]
[1765924503929,0.3608,87888.0,87887.0,0.0675907]
[1765924505326,0.3608,87888.0,87887.0,0.0685907]
[1765924505928,0.0694404,87890.0,87889.0,0.05629]
[1765924506128,0.09621237,87890.0,87889.0,0.05629]
[1765924507139,0.09621237,87890.0,87889.0,0.05729]
[1765924507643,0.0694404,87890.0,87889.0,0.05729]
[1765924510642,0.0694404,87890.0,87889.0,0.0686704]
[1765924512345,0.09671383,87890.0,87889.0,0.001]
[1765924513032,0.09671383,87890.0,87882.0,0.01155198]
[1765924513033,0.0694412,87883.0,87882.0,0.06784198]
[1765924515036,0.0694412,87883.0,87882.0,0.00017068]
[1765924515438,0.09671861,87883.0,87882.0,0.00017068]
[1765924517440,0.09771861,87883.0,87882.0,0.00017068]
[1765924518846,0.09871861,87883.0,87882.0,0.00017068]
[1765924519548,0.09971861,87883.0,87882.0,0.00017068]
[1765924525657,0.09971861,87883.0,87882.0,6.8e-07]
[1765924546158,0.16107606,87883.0,87882.0,6.8e-07]
[1765924550071,0.52187606,87883.0,87882.0,6.8e-07]
[1765924551168,0.46051861,87883.0,87882.0,6.8e-07]
[1765924561480,1.17151861,87883.0,87882.0,6.8e-07]
[1765924562977,1.14321861,87883.0,87882.0,6.8e-07]
[1765924563183,1.11345861,87883.0,87882.0,6.8e-07]
[1765924565579,1.11345861,87883.0,87882.0,0.02865068]
[1765924565784,1.11345861,87883.0,87882.0,6.8e-07]
[1765924575380,1.17044861,87883.0,87882.0,0.02865068]
[1765924575581,1.14296861,87883.0,87882.0,6.8e-07]
[1765924575785,1.11345861,87883.0,87882.0,6.8e-07]
[1765924582188,1.0861812,87883.0,87882.0,6.8e-07]
[1765924582392,1.11328536,87883.0,87882.0,6.8e-07]
[1765924607015,1.11328536,87883.0,87882.0,0.05781068]
[1765924607215,0.46054536,87883.0,87882.0,0.05781068]
[1765924607507,1.17150536,87883.0,87882.0,0.05781068]
[1765924608103,1.17050536,87883.0,87882.0,0.05781068]
[1765924610417,1.17050536,87883.0,87882.0,0.02876068]
[1765924610712,1.11224536,87883.0,87882.0,6.8e-07]
[1765924615316,1.11220536,87883.0,87882.0,6.8e-07]
[1765924623918,0.40128536,87883.0,87882.0,6.8e-07]
[1765924624118,1.11220536,87883.0,87882.0,6.8e-07]
[1765924660334,1.11268642,87883.0,87882.0,6.8e-07]
[1765924680365,0.08649522,87883.0,87882.0,0.06745208]
[1765924680771,0.08649522,87883.0,87882.0,0.05607068]
[1765924681064,0.08649522,87883.0,87882.0,0.06745208]
[1765924681270,0.08649522,87883.0,87882.0,0.05607068]
[1765924681470,0.02958522,87883.0,87882.0,6.8e-07]
[1765924681664,0.02858522,87883.0,87882.0,6.8e-07]
[1765924681870,0.42323996,87883.0,87882.0,6.8e-07]
[1765924682070,0.44982518,87883.0,87882.0,6.8e-07]
[1765924682471,0.38838522,87883.0,87882.0,6.8e-07]
[1765924682955,0.39038522,87883.0,87882.0,6.8e-07]
[1765924691775,0.02958522,87883.0,87882.0,6.8e-07]
[1765924697478,0.02958522,87883.0,87882.0,0.05621068]
[1765924697675,0.05804,87883.0,87882.0,0.05621068]
[1765924697874,0.08529786,87883.0,87882.0,0.05621068]
[1765924698878,0.08429786,87883.0,87882.0,0.05621068]
[1765924699882,0.02825786,87883.0,87882.0,0.05621068]
[1765924700580,0.02725786,87883.0,87882.0,0.05621068]
[1765924700775,0.02725786,87883.0,87882.0,0.07277068]
[1765924701484,0.0674206,87888.0,87887.0,0.0675907]
[1765924701686,0.09452224,87888.0,87887.0,0.4283907]
[1765924703188,0.05560164,87888.0,87887.0,0.4283907]
[1765924703485,0.05560164,87888.0,87887.0,0.4293907]
[1765924706086,0.02710164,87888.0,87887.0,0.4293907]
[1765924707678,0.05560164,87888.0,87887.0,0.4293907]
[1765924707890,0.08314164,87888.0,87887.0,0.4293907]
[1765924718202,0.08314164,87888.0,87887.0,0.0685907]
[1765924718402,0.08314164,87888.0,87887.0,0.4293907]
[1765924723711,0.05560164,87888.0,87887.0,0.4293907]
[1765924723909,0.08299164,87888.0,87887.0,0.4293907]
[1765924724312,0.09437224,87888.0,87887.0,0.4293907]
[1765924726816,0.08299164,87888.0,87887.0,0.4293907]
[1765924732712,0.05560164,87888.0,87887.0,0.4293907]
[1765924734714,0.08299164,87888.0,87887.0,0.4293907]
[1765924738322,0.08299164,87888.0,87887.0,0.0685907]
[1765924738522,0.08299164,87888.0,87887.0,0.4293907]
[1765924743214,0.09971164,87888.0,87887.0,0.001]
[1765924743420,0.46051164,87888.0,87887.0,0.001]
[1765924743918,0.0113812,87883.0,87882.0,6.8e-07]
[1765924744519,0.03848284,87883.0,87882.0,6.8e-07]
[1765924745428,0.03948284,87883.0,87882.0,6.8e-07]
[1765924746024,0.04048284,87883.0,87882.0,6.8e-07]
[1765924749823,0.40128284,87883.0,87882.0,6.8e-07]
[1765924750224,0.45965284,87883.0,87882.0,0.02875068]
[1765924750420,0.45965284,87883.0,87882.0,6.8e-07]
[1765924752328,0.42968284,87883.0,87882.0,6.8e-07]
[1765924752726,0.42968284,87883.0,87882.0,0.02875068]
[1765924752928,0.45965284,87883.0,87882.0,0.02875068]
[1765924753333,0.40128284,87883.0,87882.0,6.8e-07]
[1765924753738,0.04048284,87883.0,87882.0,6.8e-07]
[1765924755435,0.0113805,87889.0,87882.0,6.8e-07]
[1765924755436,6.8e-07,87891.0,87890.0,0.0113803]
[1765924755634,0.01671,87910.0,87909.0,0.0113779]
[1765924755840,0.01671,87910.0,87909.0,0.3721779]
[1765924757548,0.01671,87910.0,87909.0,0.38364093]
[1765924761951,0.01671,87914.0,87913.0,0.0113773]
[1765924762150,0.01671,87916.0,87913.0,0.0113773]
[1765924762352,0.01671,87916.0,87915.0,0.3608]
[1765924762551,0.01671,87916.0,87915.0,1.07208]
[1765924763049,0.01371,87916.0,87915.0,1.07208]
[1765924764947,0.01371,87916.0,87915.0,1.12671456]
[1765924765448,0.01371,87916.0,87915.0,1.07208]
[1765924769749,0.01371,87916.0,87915.0,1.43288]
[1765924771548,0.47208,87916.0,87915.0,0.25197561]
[1765924771746,0.47208,87916.0,87901.0,0.36097068]
[1765924771747,0.0697488,87902.0,87901.0,0.05728068]
[1765924772852,0.0697488,87902.0,87901.0,0.00017068]
[1765924774051,0.0697488,87902.0,87901.0,0.02892068]
[1765924774461,0.0707488,87902.0,87901.0,0.02892068]
[1765924775054,0.0697488,87902.0,87901.0,0.02892068]
[1765924775254,0.0707488,87902.0,87901.0,0.02892068]
[1765924778160,0.0707488,87902.0,87901.0,0.00017068]
[1765924782063,0.0682317,87879.0,87878.0,0.41884]
[1765924783165,0.0682317,87879.0,87878.0,0.39235]
[1765924783364,0.0682317,87879.0,87878.0,0.03155]
[1765924783568,0.0682317,87879.0,87878.0,0.06004]
[1765924783967,0.0682317,87879.0,87878.0,0.06204]
[1765924785173,0.0682317,87879.0,87878.0,0.06004]
[1765924785672,0.0682317,87879.0,87878.0,0.05804]
[1765924786867,0.0692317,87879.0,87878.0,0.05804]
[1765924794276,0.0692317,87879.0,87878.0,0.0694219]
[1765924796074,0.0682317,87879.0,87878.0,0.0704219]
[1765924797877,0.0682317,87879.0,87878.0,0.05904]
[1765924799482,0.0682317,87879.0,87878.0,0.05804]
[1765924800267,0.05685,87877.0,87876.0,0.3608]
[1765924800478,0.068232,87877.0,87876.0,0.39035]
[1765924800680,0.068232,87877.0,87876.0,0.05804]
[1765924800877,0.09472463,87877.0,87876.0,0.05804]
[1765924801774,0.0857026,87872.0,87871.0,0.0113828]
[1765924802080,0.05685,87871.0,87870.0,0.02972068]
[1765924802668,0.05685,87871.0,87870.0,0.05821068]
[1765924803078,0.05685,87871.0,87870.0,0.05921068]
[1765924803679,0.05685,87871.0,87870.0,0.06021068]
[1765924808480,0.08338671,87871.0,87870.0,0.06021068]
[1765924808880,0.05685,87871.0,87870.0,0.06021068]
[1765924809281,0.08339,87871.0,87870.0,0.06021068]
[1765924813088,0.08339,87871.0,87870.0,0.03172068]
[1765924813387,0.08339,87871.0,87870.0,0.06061068]
[1765924837101,0.08349414,87871.0,87870.0,0.06061068]
[1765924845010,0.08340463,87871.0,87870.0,0.06061068]
[1765924847616,0.08340463,87871.0,87870.0,0.42141068]
[1765924854426,0.08340463,87871.0,87870.0,0.06061068]
[1765924862035,0.00017068,87887.0,87886.0,0.07195]
[1765924862328,0.06753138,87887.0,87886.0,0.05724]
[1765924862834,0.01155138,87887.0,87886.0,0.05724]
[1765924863032,0.01255138,87887.0,87886.0,0.05724]
[1765924863434,0.04038138,87887.0,87886.0,0.05724]
[1765924864428,0.04038138,87887.0,87886.0,0.05824]
[1765924864620,0.03938138,87887.0,87886.0,0.05824]
[1765924864928,0.02800068,87887.0,87886.0,0.05924]
[1765924865429,0.02800068,87887.0,87886.0,0.06024]
[1765924865734,0.05680068,87887.0,87886.0,0.06024]
[1765924866126,0.05680068,87887.0,87886.0,0.05824]
[1765924866530,0.05680068,87887.0,87886.0,0.05924]
[1765924866934,0.05680068,87887.0,87886.0,0.05824]
[1765924867127,0.05680068,87887.0,87886.0,0.05924]
[1765924867528,0.05680068,87887.0,87886.0,0.05824]
[1765924867729,0.05680068,87887.0,87886.0,0.05924]
[1765924873645,0.00017068,87887.0,87886.0,0.05924]
[1765924873944,0.05680068,87887.0,87886.0,0.05924]
[1765924887559,0.06818138,87887.0,87886.0,0.05924]
[1765924891356,0.09441245,87887.0,87886.0,0.05924]
[1765924893058,0.08303175,87887.0,87886.0,0.05924]
[1765924905880,0.05527175,87887.0,87886.0,0.05924]